bitfinex-derivatives/quotes_SOLF0:USTF0_20250831
["timestamp","ask_amount","ask_price","bid_price","bid_amount"]
[1756605951993,2.38124522,205.89,205.87,6.09886457]
[1756605952290,7.32,205.87,205.86,4.00151671]
[1756605952489,2.38124522,205.87,205.86,7.56]
[1756605952688,2.38124522,205.87,205.86,11.56151671]
[1756605953495,7.32,205.94,205.86,10.13734786]
[1756605953691,7.32,205.94,205.89,2.09734786]
[1756605953896,7.32,205.97,205.89,2.09734786]
[1756605954899,7.32,205.97,205.89,9.65734786]
[1756605955101,7.32,205.97,205.89,13.67271812]
[1756605955402,7.32,205.97,205.93,7.56]
[1756605956295,7.32,205.97,205.92,2.09734786]
[1756605956296,7.32,206.03,205.92,2.09734786]
[1756605961510,7.32,206.03,205.9,6.11271812]
[1756605963899,7.32,206.01,205.9,4.01537026]
[1756605964100,2.09734786,206.02,205.89,11.57537026]
[1756605964703,7.32,206.01,205.89,11.57537026]
[1756605964906,2.09734786,206.02,205.89,11.57537026]
[1756605965108,7.32,206.0,205.89,11.57537026]
[1756605965316,7.32,206.0,205.93,7.56]
[1756605967315,7.32,206.0,205.9,4.01537026]
[1756605967612,2.09734786,206.03,205.89,11.57537026]
[1756605968113,7.31,206.02,205.89,11.57537026]
[1756605968317,2.09734786,206.03,205.89,11.57537026]
[1756605968915,7.31,206.02,205.9,4.01537026]
[1756605969214,7.31,206.02,205.91,7.54]
[1756605970924,9.40734786,205.99,205.88,7.54]
[1756605971120,9.40734786,205.99,205.88,11.55537026]
[1756605971321,7.31,205.99,205.89,11.55537026]
[1756605971817,7.31,205.99,205.89,4.01537026]
[1756605972011,7.31,205.97,205.85,4.01537026]
[1756605972210,9.40734786,205.97,205.85,4.01537026]
[1756605972614,9.40734786,205.97,205.86,11.55537026]
[1756605972919,7.31,205.96,205.86,11.55537026]
[1756605973121,7.31,205.97,205.86,11.55537026]
[1756605973421,7.31,205.94,205.86,7.54]
[1756605977422,2.09734786,206.01,205.87,4.02359954]
[1756605977622,2.09734786,206.01,205.86,7.54]
[1756605977623,7.31,206.0,205.89,7.54]
[1756605978225,7.31,205.97,205.89,7.54]
[1756605982926,2.09734786,205.96,205.85,6.1209474]
[1756605983128,7.31,205.95,205.85,7.54]
[1756605986031,22.48734786,205.99,205.86,4.02359954]
[1756605986234,22.48734786,205.99,205.87,7.54]
[1756605995339,22.48734786,205.99,205.79,11.56359954]
[1756605995340,7.31,205.89,205.79,11.56359954]
[1756605995641,7.31,205.85,205.79,7.54]
[1756605997434,7.31,205.85,205.76,4.02359954]
[1756605997634,7.31,205.85,205.75,11.56359954]
[1756605999442,7.31,205.85,205.75,7.54]
[1756606000939,9.40734786,205.85,205.75,7.54]
[1756606002945,2.09734786,205.82,205.75,7.54]
[1756606003243,7.19,205.81,205.72,7.37]
[1756606009738,7.19,205.81,205.63,46.90272361]
[1756606009739,7.19,205.81,205.7,2.09734786]
[1756606010640,9.28734786,205.81,205.7,2.09734786]
[1756606011746,9.28734786,205.81,205.71,3.89]
[1756606012747,7.19,205.81,205.71,3.89]
[1756606012948,9.09734786,205.87,205.74,3.89]
[1756606013148,7.19,205.86,205.74,3.89]
[1756606013447,2.09734786,205.84,205.74,3.89]
[1756606013748,7.19,205.83,205.74,3.89]
[1756606018853,7.19,205.83,205.75,3.89]
[1756606028756,7.19,205.83,205.72,3.9]
[1756606037567,5.42563607,205.9,205.76,3.9]
[1756606037568,7.41,205.89,205.76,3.9]
[1756606038469,7.41,205.89,205.78,2.09734786]
[1756606038672,7.41,205.89,205.79,3.9]
[1756606042567,7.41,205.89,205.79,5.99734786]
[1756606042874,7.41,205.86,205.75,5.99734786]
[1756606046184,7.41,205.86,205.75,3.9]
[1756606048286,9.50734786,205.86,205.75,3.9]
[1756606049486,7.41,205.86,205.76,2.09734786]
[1756606049688,7.41,205.86,205.77,3.88]
[1756606058388,9.50734786,205.86,205.77,3.88]
[1756606059486,7.41,205.86,205.78,3.9]
[1756606063597,7.41,205.86,205.75,5.99734786]
[1756606063986,7.41,205.86,205.7,5.35974365]
[1756606063987,9.50734786,205.86,205.7,5.35974365]
[1756606064187,7.8,205.84,205.72,2.09734786]
[1756606065093,7.8,205.84,205.73,3.9]
[1756606065295,7.8,205.84,205.76,3.9]
[1756606070093,7.8,205.84,205.76,5.99734786]
[1756606070304,7.8,205.88,205.8,2.09734786]
[1756606071401,7.8,205.88,205.78,3.9]
[1756606075905,7.8,205.88,205.8,2.09734786]
[1756606077602,7.8,205.88,205.79,2.09734786]
[1756606083007,7.8,205.88,205.76,6.12073457]
[1756606084206,7.8,205.88,205.77,3.9]
[1756606084709,7.8,205.88,205.76,6.12073457]
[1756606084710,7.8,205.88,205.79,2.09734786]
[1756606084910,7.8,205.88,205.82,2.09734786]
[1756606087301,7.8,205.88,205.8,3.9]
[1756606088810,7.8,205.88,205.82,2.09734786]
[1756606089113,7.47,205.93,205.83,3.88]
[1756606089307,0.03271894,205.87,205.85,2.09734786]
[1756606089506,0.03271894,205.87,205.84,3.88]
[1756606089908,0.03271894,205.87,205.83,6.15428746]
[1756606090210,0.03271894,205.87,205.83,2.13090075]
[1756606090409,0.03271894,205.87,205.84,3.88]
[1756606090609,0.03271894,205.87,205.83,6.15428746]
[1756606090812,0.03271894,205.87,205.84,3.88]
[1756606091002,0.03271894,205.87,205.83,6.15428746]
[1756606091402,7.47,205.97,205.86,10.00073457]
[1756606092012,7.47,205.97,205.89,2.09734786]
[1756606092804,7.47,205.97,205.91,0.03722215]
[1756606099611,7.47,205.97,205.92,2.09734786]
[1756606099813,7.47,206.02,205.92,5.97734786]
[1756606100012,7.47,206.02,205.95,2.09734786]
[1756606100718,7.47,206.02,205.96,0.03195905]
[1756606107916,2.09734786,206.08,205.96,0.03195905]
[1756606107917,7.47,206.08,205.96,0.03195905]
[1756606108119,2.09734786,206.09,205.96,0.03195905]
[1756606108120,7.47,206.04,205.96,0.03195905]
[1756606108515,7.47,206.04,205.95,2.09734786]
[1756606108912,7.47,206.04,205.98,0.03485044]
[1756606129440,7.47,206.04,205.98,1.37857971]
[1756606132447,120.86,206.03,205.98,1.37857971]
[1756606132946,7.22,206.1,206.02,1.34372927]
[1756606133145,120.86,206.09,206.04,1.34372927]
[1756606133549,7.22,206.08,206.06,1.34372927]
[1756606134249,7.22,206.08,206.04,3.90527112]
[1756606134444,120.86,206.09,206.05,1.34372927]
[1756606135150,7.22,206.08,206.07,1.34372927]
[1756606135350,7.22,206.08,206.05,3.87]
[1756606135649,120.86,206.09,206.05,3.87]
[1756606135850,120.86,206.09,206.04,2.13301928]
[1756606136147,128.08,206.09,206.05,3.87]
[1756606136538,7.22,206.09,206.05,3.87]
[1756606138050,7.22,206.12,206.05,3.87]
[1756606139148,7.22,206.12,206.04,0.03527112]
[1756606141246,7.22,206.1,206.04,0.03527112]
[1756606141450,7.22,206.07,206.04,0.03527112]
[1756606141649,7.22,206.05,205.96,3.87]
[1756606142851,0.03078367,206.03,205.96,3.87]
[1756606143055,7.22,206.02,205.96,3.87]
[1756606143451,7.22,206.0,205.92,3.9]
[1756606144154,0.03588288,205.98,205.92,3.9]
[1756606144350,7.25588288,205.98,205.92,3.9]
[1756606144856,7.25588288,205.98,205.91,2.09774816]
[1756606145655,7.25588288,205.98,205.92,3.9]
[1756606149357,7.97,205.97,205.89,88.86665686]
[1756606149557,7.97,205.97,205.89,3.91]
[1756606154358,7.97,205.97,205.85,4.02338671]
[1756606154359,0.03588288,205.98,205.92,3.91]
[1756606154863,7.97,206.01,205.95,3.91]
[1756606155563,0.0307245,206.0,205.95,3.91]
[1756606155858,0.0307245,206.0,205.94,2.09774816]
[1756606156059,0.0307245,206.0,205.95,3.91]
[1756606156361,0.0307245,206.0,205.94,2.09774816]
[1756606156562,0.0307245,206.0,205.95,2.09774816]
[1756606156758,0.0307245,206.0,205.96,3.91]
[1756606157164,8.0007245,206.0,205.96,3.91]
[1756606158762,0.0307245,206.0,205.96,3.91]
[1756606158964,0.0307245,206.0,205.95,2.09774816]
[1756606159166,0.0307245,206.0,205.96,3.91]
[1756606159567,0.0307245,206.0,205.95,2.09774816]
[1756606159865,0.0307245,206.0,205.96,3.91]
[1756606160363,0.0307245,206.0,205.95,2.09774816]
[1756606160571,7.97,205.99,205.91,3.91]
[1756606161365,7.97,205.99,205.87,4.02338671]
[1756606161366,7.97,205.99,205.88,6.00774816]
[1756606162070,0.03143713,205.96,205.88,6.00774816]
[1756606162371,7.97,205.95,205.88,6.00774816]
[1756606166472,7.97,205.95,205.88,3.91]
[1756606166672,7.97,205.95,205.88,6.00774816]
[1756606168076,7.97,205.95,205.88,3.91]
[1756606170875,7.97,205.95,205.85,7.93338671]
[1756606171175,7.97,205.95,205.85,6.00774816]
[1756606171375,7.97,205.95,205.86,3.91]
[1756606171775,7.97,205.95,205.89,3.91]
[1756606172475,0.03356232,205.94,205.89,3.91]
[1756606172675,0.03356232,205.94,205.88,6.00774816]
[1756606176379,0.03356232,205.94,205.88,2.09774816]
[1756606177276,0.03356232,205.94,205.91,2.09774816]
[1756606178378,0.03356232,205.94,205.92,3.87]
[1756606178681,0.03356232,205.94,205.91,2.09774816]
[1756606179675,0.03356232,205.94,205.92,3.87]
[1756606180077,0.03356232,205.94,205.91,2.09774816]
[1756606180477,0.03356232,205.94,205.92,3.87]
[1756606180677,0.03356232,205.94,205.91,2.09774816]
[1756606180981,0.03356232,205.94,205.92,3.87]
[1756606181181,0.03356232,205.94,205.91,2.09774816]
[1756606181373,7.97,206.0,205.92,3.87]
[1756606181573,7.9,206.04,205.95,2.09774816]
[1756606182680,7.9,206.04,205.97,0.03515879]
[1756606185285,31.76,206.05,205.97,0.03515879]
[1756606185286,7.9,206.01,205.97,0.03515879]
[1756606196403,7.9,206.03,205.97,0.03515879]
[1756606197402,120.6,206.02,205.97,0.03515879]
[1756606197702,334.38032453,206.08,205.97,0.03515879]
[1756606197703,7.9,206.03,205.97,0.03515879]
[1756606198604,7.9,206.03,205.97,3.90515879]
[1756606200701,7.9,206.07,206.01,3.87]
[1756606201003,5.42563607,206.15,206.01,3.87]
[1756606201004,7.9,206.11,206.01,3.87]
[1756606201394,7.9,206.11,206.04,0.03695657]
[1756606203108,120.56,206.1,206.04,0.03695657]
[1756606204005,128.46,206.11,206.04,0.03695657]
[1756606204405,7.9,206.11,206.04,0.03695657]
[1756606204603,7.9,206.11,206.05,3.87]
[1756606205304,7.9,206.11,206.04,0.03695657]
[1756606214822,9.99774816,206.11,206.04,0.03695657]
[1756606215219,7.71,206.07,206.04,0.03695657]
[1756606217418,7.71,206.07,205.91,4.01460683]
[1756606217715,7.71,206.04,205.93,3.95]
[1756606217917,7.71,206.02,205.93,3.95]
[1756606218923,0.0348395,206.0,205.93,3.95]
[1756606220224,7.71,205.99,205.93,3.95]
[1756606221219,7.71,205.99,205.89,10.06235499]
[1756606221424,7.71,205.99,205.89,3.95]
[1756606221925,0.03517563,205.96,205.89,3.95]
[1756606222124,7.74517563,205.96,205.89,3.95]
[1756606225022,7.74517563,205.96,205.85,3.94]
[1756606225223,18.98292379,205.96,205.85,3.94]
[1756606227424,2.09774816,205.93,205.82,95.79694649]
[1756606227929,7.71,205.92,205.82,95.79694649]
[1756606228924,11.94,205.96,205.84,3.94]
[1756606229129,11.94,205.96,205.9,3.94]
[1756606230132,7.71,205.95,205.87,6.03774816]
[1756606230329,7.71,205.95,205.88,3.94]
[1756606230634,0.03069449,205.93,205.87,2.09774816]
[1756606231128,0.03069449,205.93,205.88,3.94]
[1756606231731,0.03069449,205.93,205.87,2.09774816]
[1756606232531,0.03069449,205.93,205.88,3.94]
[1756606233335,0.03069449,205.93,205.87,2.09774816]
[1756606233538,0.03069449,205.93,205.88,3.94]
[1756606233938,0.03069449,205.93,205.87,2.09774816]
[1756606234137,0.03069449,205.93,205.88,3.94]
[1756606234538,0.03069449,205.93,205.87,2.09774816]
[1756606234740,0.03069449,205.93,205.88,3.94]
[1756606235038,0.03069449,205.93,205.87,2.09774816]
[1756606235234,0.03069449,205.93,205.88,3.94]
[1756606235433,0.03069449,205.93,205.87,2.09774816]
[1756606235643,0.03069449,205.93,205.87,6.03774816]
[1756606238136,7.24,205.92,205.83,4.01460683]
[1756606238334,7.24,205.92,205.84,3.95]
[1756606240644,7.24,205.92,205.87,3.95]
[1756606240850,7.24,205.92,205.86,6.04774816]
[1756606241646,7.24,205.92,205.86,3.95]
[1756606241846,7.24,205.92,205.84,2.09774816]
[1756606242442,7.24,205.92,205.83,3.95]
[1756606242648,9.33774816,205.92,205.83,3.95]
[1756606243043,2.09774816,205.92,205.82,91.85694649]
[1756606243449,26.07774816,205.92,205.82,91.85694649]
[1756606243649,7.24,205.91,205.82,91.85694649]
[1756606244345,0.03153845,205.89,205.82,91.85694649]
[1756606245449,7.27153845,205.89,205.82,91.85694649]
[1756606246443,7.24,205.88,205.82,91.85694649]
[1756606255564,7.24,205.88,205.8,3.95]
[1756606256260,7.24,205.88,205.75,4.01460683]
[1756606256463,7.24,205.88,205.76,3.95]
[1756606256464,65.0,205.88,205.76,3.95]
[1756606257055,67.09774816,205.88,205.76,3.95]
[1756606257865,7.27061364,205.84,205.76,3.95]
[1756606259263,0.03061364,205.84,205.76,3.95]
[1756606259767,0.03061364,205.84,205.78,3.95]
[1756606260764,0.03061364,205.84,205.81,3.96]
[1756606261066,0.03061364,205.84,205.8,2.09774816]
[1756606261459,0.03061364,205.84,205.78,4.01460683]
[1756606261664,0.03061364,205.84,205.79,6.05774816]
[1756606261967,0.03061364,205.84,205.8,3.96]
[1756606262265,0.03061364,205.84,205.79,2.09774816]
[1756606262467,0.03061364,205.84,205.8,3.96]
[1756606262667,0.03061364,205.84,205.79,2.09774816]
[1756606263170,0.03061364,205.84,205.8,3.96]
[1756606263370,0.03061364,205.84,205.79,2.09774816]
[1756606263567,0.03061364,205.84,205.8,3.96]
[1756606264167,0.03061364,205.84,205.79,2.09774816]
[1756606264365,0.03061364,205.84,205.8,3.96]
[1756606264572,0.03061364,205.84,205.78,4.01460683]
[1756606264573,7.27061364,205.84,205.78,3.96]
[1756606266466,7.27061364,205.84,205.74,3.96]
[1756606267268,7.24,205.82,205.74,3.96]
[1756606268370,22.2,205.82,205.7,3.96]
[1756606269364,7.24,205.82,205.7,3.96]
[1756606269568,7.24,205.82,205.72,3.96]
[1756606270973,0.03080246,205.79,205.72,3.96]
[1756606274673,0.03080246,205.79,205.73,2.09774816]
[1756606274976,0.03080246,205.79,205.77,3.96]
[1756606276177,14.9,205.9,205.77,4.44]
[1756606276478,16.99774816,205.9,205.8,3.96]
[1756606277371,16.99774816,205.9,205.83,0.0365417]
[1756606282168,120.4,205.89,205.83,0.0365417]
[1756606282378,7.54,205.88,205.83,0.0365417]
[1756606282577,120.4,205.88,205.83,0.0365417]
[1756606282778,7.54,205.87,205.83,0.0365417]
[1756606283378,120.4,205.88,205.83,0.0365417]
[1756606283677,7.54,205.87,205.83,0.0365417]
[1756606283872,120.4,205.88,205.83,0.0365417]
[1756606284074,7.54,205.87,205.83,0.0365417]
[1756606284675,120.4,205.88,205.83,0.0365417]
[1756606285170,7.54,205.87,205.83,0.0365417]
[1756606285375,120.4,205.88,205.83,0.0365417]
[1756606286270,7.54,205.87,205.83,0.0365417]
[1756606287379,120.4,205.88,205.83,0.0365417]
[1756606287572,7.54,205.87,205.83,0.0365417]
[1756606287772,120.4,205.88,205.83,0.0365417]
[1756606287973,7.54,205.87,205.83,0.0365417]
[1756606288881,120.4,205.88,205.83,0.0365417]
[1756606289484,7.54,205.87,205.83,0.0365417]
[1756606290177,120.4,205.88,205.83,0.0365417]
[1756606290481,7.54,205.87,205.83,0.0365417]
[1756606290873,120.4,205.88,205.83,0.0365417]
[1756606291079,7.54,205.87,205.83,0.0365417]
[1756606291380,120.4,205.88,205.83,0.0365417]
[1756606291582,7.54,205.87,205.83,0.0365417]
[1756606291876,120.4,205.88,205.83,0.0365417]
[1756606292282,7.54,205.87,205.83,0.0365417]
[1756606292985,120.36,205.86,205.83,0.0365417]
[1756606293183,7.54,205.85,205.83,0.0365417]
[1756606293384,120.36,205.86,205.83,0.0365417]
[1756606293587,120.36,205.85,205.83,0.0365417]
[1756606293879,7.54,205.84,205.83,0.0365417]
[1756606295487,37.46,205.84,205.83,0.0365417]
[1756606296380,58.32,205.86,205.83,0.0365417]
[1756606296784,7.54,205.85,205.83,0.0365417]
[1756606297478,58.32,205.86,205.83,0.0365417]
[1756606297681,7.4,205.85,205.83,0.0365417]
[1756606298683,7.4,205.85,205.74,3.95]
[1756606298888,7.4,205.82,205.74,3.95]
[1756606299989,2.09774816,205.83,205.74,3.95]
[1756606299990,7.43343452,205.8,205.74,3.95]
[1756606322208,0.03343452,205.8,205.74,3.95]
[1756606329317,7.94,205.79,205.74,3.95]
[1756606329523,7.97343452,205.8,205.73,3.97]
[1756606335415,9.32026049,205.8,205.73,5.31682597]
[1756606336125,9.32026049,205.8,205.67,4.0335793]
[1756606336126,7.94,205.73,205.67,4.0335793]
[1756606336327,1.34682597,205.72,205.65,5.31682597]
[1756606336522,1.34682597,205.72,205.65,3.97]
[1756606336720,7.94,205.71,205.65,3.97]
[1756606337020,7.97443694,205.71,205.65,3.97]
[1756606337327,7.94,205.7,205.67,3.97]
[1756606338719,7.94,205.7,205.65,1.34682597]
[1756606338925,7.97443694,205.71,205.65,5.31682597]
[1756606339120,7.97443694,205.71,205.65,3.97]
[1756606346022,0.03443694,205.71,205.65,3.97]
[1756606347029,0.03443694,205.71,205.68,3.97]
[1756606347727,7.94,205.78,205.7,6.07633969]
[1756606347926,7.94,205.78,205.68,3.97]
[1756606349029,7.94,205.78,205.71,0.03119867]
[1756606358131,120.22,205.77,205.71,0.03119867]
[1756606358633,7.27,205.76,205.71,0.03119867]
[1756606359028,2.10633969,205.79,205.71,0.03119867]
[1756606359230,7.27,205.77,205.72,3.99]
[1756606359832,7.27,205.77,205.71,0.03119867]
[1756606360032,7.27,205.77,205.72,3.99]
[1756606360434,120.22,205.78,205.72,3.99]
[1756606360837,7.27,205.77,205.72,3.99]
[1756606361340,1.34728768,205.76,205.72,3.99]
[1756606361539,7.27,205.75,205.72,3.99]
[1756606361940,7.27,205.75,205.71,0.03119867]
[1756606362136,1.34728768,205.74,205.71,0.03119867]
[1756606362538,7.27,205.73,205.71,0.03119867]
[1756606363242,8.61728768,205.72,205.71,0.03119867]
[1756606363442,7.27,205.72,205.71,0.03119867]
[1756606366343,28.54,205.74,205.71,4.02119867]
[1756606367346,7.27,205.77,205.71,0.03119867]
[1756606367546,7.27,205.77,205.71,4.02119867]
[1756606372152,9.37609099,205.85,205.71,6.12728966]
[1756606372453,7.27,205.83,205.72,3.99]
[1756606372848,7.27,205.83,205.75,0.03268559]
[1756606376560,7.27,205.81,205.75,4.02268559]
[1756606377055,95.82,205.83,205.75,4.02268559]
[1756606378058,7.27,205.82,205.75,4.02268559]
[1756606380465,9.37609099,205.82,205.75,0.03268559]
[1756606382260,7.27,205.82,205.75,4.02268559]
[1756606384362,7.27,205.82,205.75,0.03268559]
[1756606386668,2.10609099,205.79,205.75,0.03268559]
[1756606386961,7.27,205.78,205.75,0.03268559]
[1756606387156,7.27,205.76,205.75,0.03268559]
[1756606400467,127.35,205.76,205.75,0.03268559]
[1756606406666,2.10609099,205.81,205.75,0.03268559]
[1756606406874,7.5,205.81,205.75,0.03268559]
[1756606407074,93.62,205.8,205.75,0.03268559]
[1756606407274,93.62,205.8,205.76,3.99]
[1756606407672,93.62,205.8,205.75,0.03268559]
[1756606408179,93.62,205.8,205.76,3.99]
[1756606408575,93.62,205.8,205.75,2.13877658]
[1756606408775,114.94,205.84,205.76,3.99]
[1756606408971,7.5,205.83,205.76,3.99]
[1756606409384,326.66,205.87,205.76,3.99]
[1756606409385,334.16,205.87,205.78,2.10609099]
[1756606409587,454.2,205.87,205.79,3.99]
[1756606411278,127.54,205.87,205.79,3.99]
[1756606411882,127.54,205.87,205.81,2.10609099]
[1756606412186,127.54,205.87,205.81,6.09609099]
[1756606412583,7.5,205.91,205.83,3.99]
[1756606412790,27.08,205.9,205.83,3.99]
[1756606413390,27.08,205.9,205.84,0.03451779]
[1756606415190,7.5,205.89,205.84,0.03451779]
[1756606415392,9.60609099,205.89,205.84,0.03451779]
[1756606422396,7.22,205.85,205.84,0.03451779]
[1756606430197,7.22,205.87,205.84,0.03451779]
[1756606430397,35.06,205.9,205.84,0.03451779]
[1756606432097,7.22,205.9,205.84,0.03451779]
[1756606432302,7.22,205.87,205.84,0.03451779]
[1756606432799,7.22,205.87,205.78,3.99]
[1756606433005,7.22,205.87,205.83,0.03723503]
[1756606436108,2.10609099,205.85,205.83,0.03723503]
[1756606436305,7.22,205.84,205.83,0.03723503]
[1756606436802,7.22,205.84,205.75,3.99]
[1756606438204,7.22,205.81,205.75,3.99]
[1756606438706,7.22,205.81,205.71,2.10609099]
[1756606438899,7.22,205.81,205.71,6.13609099]
[1756606439504,7.22,205.81,205.71,4.03]
[1756606441908,7.22,205.78,205.71,4.03]
[1756606442707,0.03613822,205.77,205.71,4.03]
[1756606444309,7.22,205.76,205.68,4.03]
[1756606446008,9.32609099,205.76,205.68,4.03]
[1756606449311,9.32609099,205.76,205.63,6.14609099]
[1756606450009,0.03621416,205.72,205.63,6.14609099]
[1756606450208,7.73,205.71,205.63,6.14609099]
[1756606451510,7.73,205.71,205.63,4.04]
[1756606453814,0.03621416,205.72,205.65,4.04]
[1756606454212,7.73,205.74,205.65,4.04]
[1756606454612,0.03188689,205.71,205.66,2.10609099]
[1756606455110,0.03188689,205.71,205.67,4.04]
[1756606455309,0.03188689,205.71,205.62,4.03270724]
[1756606455515,0.03188689,205.71,205.65,2.10609099]
[1756606456510,0.03188689,205.71,205.62,4.04]
[1756606456712,0.03188689,205.71,205.64,4.04]
[1756606465813,0.03188689,205.71,205.66,2.10609099]
[1756606466009,0.03188689,205.71,205.67,4.04]
[1756606469514,0.03188689,205.71,205.65,4.03270724]
[1756606469720,0.03188689,205.71,205.66,2.10609099]
[1756606469922,0.03188689,205.71,205.67,4.04]
[1756606470113,0.03188689,205.71,205.66,2.10609099]
[1756606470320,7.76188689,205.71,205.67,4.04]
[1756606470618,7.73,205.7,205.67,4.04]
[1756606471719,0.03188689,205.71,205.65,4.04]
[1756606474018,0.03188689,205.71,205.6,5.3776266]
[1756606474019,7.76188689,205.71,205.64,4.04]
[1756606476923,7.76188689,205.71,205.65,4.04]
[1756606477919,7.85,205.69,205.59,4.03270724]
[1756606478123,7.85,205.69,205.6,4.04]
[1756606478325,7.85,205.69,205.6,8.07270724]
[1756606478826,0.0359931,205.67,205.6,4.04]
[1756606479221,0.0359931,205.67,205.61,4.04]
[1756606488124,0.0359931,205.67,205.56,2.10609099]
[1756606488125,7.85,205.66,205.57,4.05786469]
[1756606488425,7.85,205.66,205.58,8.09786469]
[1756606488630,7.85,205.66,205.59,4.04]
[1756606490226,7.85,205.66,205.59,8.09786469]
[1756606490931,7.85,205.66,205.59,4.04]
[1756606492227,7.85,205.66,205.6,4.04]
[1756606492431,0.0359931,205.67,205.61,4.04]
[1756606493129,0.0359931,205.67,205.61,4.05786469]
[1756606494630,0.0359931,205.67,205.62,4.04]
[1756606494930,0.0359931,205.67,205.62,2.10609099]
[1756606495129,0.0359931,205.67,205.63,4.04]
[1756606495436,0.0359931,205.67,205.62,6.16395568]
[1756606495635,0.0359931,205.67,205.63,4.04]
[1756606495839,0.0359931,205.67,205.62,6.16395568]
[1756606496334,0.0359931,205.67,205.63,4.04]
[1756606496534,0.0359931,205.67,205.62,4.05786469]
[1756606496729,0.0359931,205.67,205.62,6.16395568]
[1756606496930,0.0359931,205.67,205.63,4.04]
[1756606497234,0.0359931,205.67,205.62,6.16395568]
[1756606497434,0.0359931,205.67,205.63,4.04]
[1756606498034,0.0359931,205.67,205.62,6.16395568]
[1756606498435,0.0359931,205.67,205.63,4.04]
[1756606498635,0.0359931,205.67,205.66,4.04]
[1756606499035,7.85,205.72,205.66,4.04]
[1756606499530,0.03253537,205.69,205.66,4.04]
[1756606499835,0.03253537,205.69,205.65,2.10609099]
[1756606500035,0.03253537,205.69,205.66,4.04]
[1756606500637,0.03253537,205.69,205.68,6.14609099]
[1756606507438,7.85,205.76,205.69,4.05]
[1756606507641,7.29,205.8,205.72,4.05]
[1756606508440,326.68,205.83,205.72,4.05]
[1756606508441,7.29,205.83,205.75,4.05]
[1756606509036,7.29,205.83,205.77,0.03144551]
[1756606509238,7.29,205.83,205.77,4.08144551]
[1756606512745,7.29,205.83,205.77,0.03144551]
[1756606513439,2.10609099,205.89,205.77,6.1875365]
[1756606513644,28.93,205.91,205.78,4.05]
[1756606514441,7.29,205.91,205.78,4.05]
[1756606514746,35.17,205.91,205.79,2.10609099]
[1756606515547,7.29,205.91,205.79,2.10609099]
[1756606515846,9.39609099,205.91,205.79,2.10609099]
[1756606516647,9.39609099,205.91,205.83,0.03119676]
[1756606516853,7.29,205.87,205.83,0.03119676]
[1756606517141,7.29,205.87,205.73,6.15609099]
[1756606517347,7.32584691,205.87,205.73,6.15609099]
[1756606517546,7.29,205.87,205.73,6.15609099]
[1756606517746,2.10609099,205.85,205.73,6.15609099]
[1756606517952,7.29,205.84,205.73,6.15609099]
[1756606518450,0.03235517,205.81,205.73,6.15609099]
[1756606520647,7.29,205.8,205.73,6.15609099]
[1756606523351,0.03235517,205.81,205.78,4.05]
[1756606523553,0.03235517,205.81,205.77,2.10609099]
[1756606523751,7.29,205.85,205.78,4.05]
[1756606524152,0.03656943,205.81,205.78,4.05]
[1756606524552,0.03656943,205.81,205.74,4.05]
[1756606524748,0.03656943,205.81,205.8,4.05]
[1756606528951,0.03656943,205.81,205.79,2.10609099]
[1756606529158,0.03656943,205.81,205.76,6.15609099]
[1756606529355,0.03656943,205.81,205.73,6.15609099]
[1756606529356,7.29,205.8,205.73,6.15609099]